bitfinex/quotes_ETHUSD_20250824
["timestamp","ask_amount","ask_price","bid_price","bid_amount"]
[1756030702756,0.30490001,4769.6,4769.5,3.2328375]
[1756030702916,0.75390001,4769.6,4769.5,2.09665583]
[1756030703919,1e-08,4769.6,4769.5,2.09665583]
[1756030707839,0.30490001,4769.6,4769.5,5.65965583]
[1756030708018,0.75390001,4769.6,4769.5,5.65965583]
[1756030708213,0.75390001,4769.6,4769.5,2.09665583]
[1756030713560,0.75390001,4769.6,4768.9,0.7648]
[1756030713561,0.75390001,4769.6,4768.9,4.3228]
[1756030713765,0.449,4769.5,4768.9,3.558]
[1756030714075,0.449,4769.5,4769.1,2.09682778]
[1756030714271,0.3049,4769.2,4769.1,2.09682778]
[1756030714431,0.7539,4769.2,4769.1,2.09682778]
[1756030716371,0.7539,4769.2,4769.0,2.09787016]
[1756030716573,0.449,4769.1,4769.0,0.001]
[1756030716870,0.7539,4769.1,4769.0,0.001]
[1756030719148,1.20379023,4769.1,4769.0,0.001]
[1756030719346,3.30062191,4769.1,4769.0,0.001]
[1756030719869,1.20379023,4769.1,4769.0,0.001]
[1756030720064,3.30062191,4769.1,4769.0,0.001]
[1756030720263,0.7539,4769.1,4769.0,0.001]
[1756030720463,1.2035018,4769.1,4769.0,0.001]
[1756030721779,3.30033348,4769.1,4769.0,0.001]
[1756030722081,1.2035018,4769.1,4769.0,0.001]
[1756030722247,0.7539,4769.1,4769.0,0.001]
[1756030722450,2.85073168,4769.1,4769.0,0.001]
[1756030723212,0.7539,4769.1,4769.0,0.001]
[1756030723766,3.2998724,4769.1,4769.0,0.001]
[1756030724191,0.7539,4769.1,4769.0,0.001]
[1756030728474,3.29922093,4769.1,4769.0,0.001]
[1756030728676,1.20238925,4769.1,4769.0,0.001]
[1756030735483,1.53053409,4769.1,4769.0,0.001]
[1756030739429,1.20238925,4769.1,4769.0,0.001]
[1756030741808,6.29922093,4769.1,4769.0,0.001]
[1756030742709,4.53053592,4769.1,4769.0,0.001]
[1756030744349,7.18772585,4769.1,4769.0,0.001]
[1756030744842,10.1683676,4769.1,4769.0,0.001]
[1756030745416,10.36364209,4769.1,4769.0,0.001]
[1756030748835,2.09705154,4768.6,4768.5,0.001]
[1756030749035,6.58274347,4768.6,4768.5,0.001]
[1756030749287,7.02684347,4768.6,4768.5,0.001]
[1756030749463,7.35505454,4768.6,4768.5,0.001]
[1756030749780,10.35505454,4768.6,4768.5,0.001]
[1756030750337,10.02684347,4768.6,4768.5,0.001]
[1756030750568,11.23590934,4768.6,4768.5,0.001]
[1756030751358,10.11093347,4768.6,4768.5,0.001]
[1756030751743,10.11074019,4768.6,4768.5,0.001]
[1756030752258,9.91563079,4768.6,4768.5,0.001]
[1756030752578,10.11074118,4768.6,4768.5,0.001]
[1756030753561,10.43896389,4768.6,4768.5,0.001]
[1756030753962,15.48096389,4768.6,4768.5,0.001]
[1756030755144,15.17606389,4768.6,4768.5,0.001]
[1756030755383,15.47896389,4768.6,4768.5,0.001]
[1756030755579,15.2838535,4768.6,4768.5,0.001]
[1756030756321,15.47881759,4768.6,4768.5,0.001]
[1756030756527,14.5368535,4768.6,4768.5,0.001]
[1756030756814,15.28546311,4768.6,4768.5,0.001]
[1756030758520,16.03246311,4768.6,4768.5,0.001]
[1756030759009,15.2838535,4768.6,4768.5,0.001]
[1756030759232,16.60378993,4768.6,4768.5,0.001]
[1756030759514,15.47881406,4768.6,4768.5,0.001]
[1756030759879,15.2838535,4768.6,4768.5,0.001]
[1756030760193,11.7468535,4768.6,4768.5,0.001]
[1756030760399,15.2828535,4768.6,4768.5,0.001]
[1756030760826,17.2028535,4768.6,4768.5,0.001]
[1756030761124,18.32782937,4768.6,4768.5,0.001]
[1756030761332,17.2028535,4768.6,4768.5,0.001]
[1756030761943,16.94930753,4768.6,4768.5,0.001]
[1756030762239,18.52329414,4768.6,4768.5,0.001]
[1756030762536,17.39831827,4768.6,4768.5,0.001]
[1756030763029,17.07009556,4768.6,4768.5,0.001]
[1756030764128,14.65907143,4768.6,4768.5,0.001]
[1756030764339,17.07789556,4768.6,4768.5,0.001]
[1756030764832,17.40612736,4768.6,4768.5,0.001]
[1756030765544,24.51612736,4768.6,4768.5,0.001]
[1756030766314,25.64110323,4768.6,4768.5,0.001]
[1756030766919,27.85310323,4768.6,4768.5,0.001]
[1756030767124,24.51612736,4768.6,4768.5,0.001]
[1756030767321,24.51612736,4768.6,4768.1,0.041]
[1756030767322,2.09722746,4768.2,4768.1,0.041]
[1756030767530,13.09608148,4768.2,4768.1,0.041]
[1756030767715,13.3680382,4768.2,4768.1,0.041]
[1756030767931,13.64696418,4768.2,4768.1,0.041]
[1756030768254,13.64696351,4768.2,4768.1,0.041]
[1756030768565,13.64796351,4768.2,4768.1,0.041]
[1756030769751,14.77045959,4768.2,4768.1,0.041]
[1756030770452,13.64796351,4768.2,4768.1,0.041]
[1756030771434,13.64796351,4768.2,4768.0,0.001]
[1756030771435,5.75727144,4768.1,4768.0,0.001]
[1756030771603,5.75727144,4768.1,4767.5,0.001]
[1756030771604,7.0174914,4767.6,4767.5,0.001]
[1756030771806,11.90365087,4767.6,4767.5,0.001]
[1756030772108,1.92,4767.3,4767.1,0.04]
[1756030772320,12.43840044,4767.2,4767.1,0.04]
[1756030772507,12.90530044,4767.2,4767.1,0.04]
[1756030773652,13.23365801,4767.2,4767.1,0.04]
[1756030775234,13.89365801,4767.2,4767.1,0.04]
[1756030776588,14.05137661,4767.2,4767.1,1e-08]
[1756030776734,14.05137661,4767.2,4765.2,0.0501]
[1756030776735,7.0177994,4766.9,4766.8,1e-08]
[1756030776935,11.60114188,4766.9,4766.8,1e-08]
[1756030777130,42.06804188,4766.9,4766.8,1e-08]
[1756030777361,43.56011173,4766.9,4766.8,1e-08]
[1756030777535,43.64418443,4766.9,4766.8,1e-08]
[1756030777734,43.64359903,4766.9,4766.8,1e-08]
[1756030778039,42.03498705,4766.9,4766.8,1e-08]
[1756030778241,42.03499572,4766.9,4766.8,1e-08]
[1756030778835,37.24199572,4766.9,4766.8,1e-08]
[1756030779035,10.77399572,4766.9,4766.8,1e-08]
[1756030780356,11.89222107,4766.9,4766.8,1e-08]
[1756030780551,11.892222,4766.9,4766.8,1e-08]
[1756030780772,10.77399572,4766.9,4766.8,1e-08]
[1756030781078,10.77386658,4766.9,4766.8,1e-08]
[1756030781278,40.77386658,4766.9,4766.8,1e-08]
[1756030781483,37.24186658,4766.9,4766.8,1e-08]
[1756030781637,40.77486658,4766.9,4766.8,1e-08]
[1756030781833,40.30796658,4766.9,4766.8,1e-08]
[1756030782053,40.77486658,4766.9,4766.8,1e-08]
[1756030782555,2.09803958,4766.4,4765.2,0.0501]
[1756030782899,6.79304012,4766.2,4765.2,0.0501]
[1756030783101,7.4361673,4766.2,4765.2,0.0501]
[1756030783306,7.5203073,4766.2,4765.2,0.0501]
[1756030783507,7.9872073,4766.2,4765.2,0.0501]
[1756030783657,7.53819656,4766.2,4765.2,0.0501]
[1756030783857,8.31353174,4766.2,4765.2,0.0501]
[1756030785405,7.56849912,4766.2,4765.2,0.0501]
[1756030785757,7.56849912,4766.2,4765.8,0.021]
[1756030786477,8.68604806,4766.2,4765.8,0.021]
[1756030786693,10.89804806,4766.2,4765.8,0.021]
[1756030786919,12.15804806,4766.2,4765.8,0.021]
[1756030787423,10.84638268,4766.2,4765.8,0.021]
[1756030787715,11.04032885,4766.2,4765.8,0.021]
[1756030788032,10.84638268,4766.2,4765.8,0.021]
[1756030788201,11.04030775,4766.2,4765.8,0.021]
[1756030788878,1.26,4765.9,4765.8,0.021]
[1756030789073,10.81998752,4765.9,4765.8,0.021]
[1756030789272,11.28688752,4765.9,4765.8,0.021]
[1756030790511,6.99908752,4765.9,4765.8,0.021]
[1756030790730,10.53008752,4765.9,4765.8,0.021]
[1756030790908,10.81998752,4765.9,4765.8,0.021]
[1756030791094,11.64657182,4765.9,4765.8,0.021]
[1756030791307,6.99908752,4765.9,4765.8,0.021]
[1756030791623,11.37003952,4765.9,4765.8,0.021]
[1756030792109,18.67313952,4765.9,4765.8,0.021]
[1756030792283,18.67313952,4765.9,4765.8,0.1106]
[1756030792284,19.30596265,4765.9,4765.8,0.1106]
[1756030792484,19.30596265,4765.9,4765.8,0.021]
[1756030792687,19.63439296,4765.9,4765.8,0.021]
[1756030792907,20.38239296,4765.9,4765.8,0.021]
[1756030793493,20.57635635,4765.9,4765.8,0.021]
[1756030793712,20.38239296,4765.9,4765.8,0.021]
[1756030794133,15.92971698,4765.9,4765.8,0.021]
[1756030794287,19.45871698,4765.9,4765.8,0.021]
[1756030794887,4.01850376,4765.3,4765.2,0.0501]
[1756030795102,12.91482664,4765.3,4765.2,0.0501]
[1756030795303,14.03206676,4765.3,4765.2,0.0501]
[1756030795497,13.52149562,4765.3,4765.2,0.0501]
[1756030795698,13.52149562,4765.3,4765.2,0.1397]
[1756030795699,13.21509562,4765.3,4765.2,0.1397]
[1756030796121,14.33263478,4765.3,4765.2,0.1397]
[1756030796287,13.21509562,4765.3,4765.2,0.1397]
[1756030797229,9.68609562,4765.3,4765.2,0.1397]
[1756030797437,13.02004479,4765.3,4765.2,0.1397]
[1756030797622,13.21423725,4765.3,4765.2,0.1397]
[1756030798423,7.0185478,4765.2,4765.1,0.04]
[1756030798626,7.65965741,4765.2,4765.1,0.04]
[1756030799138,7.74381341,4765.2,4765.1,0.04]
[1756030800918,8.49181341,4765.2,4765.1,0.04]
[1756030801135,10.28192457,4765.2,4765.1,0.04]
[1756030801309,10.28192457,4765.2,4764.8,0.02]
[1756030801310,4.01867993,4764.9,4764.8,0.02]
[1756030801508,11.18678954,4764.9,4764.8,0.02]
[1756030801705,9.92678954,4764.9,4764.8,0.02]
[1756030802122,10.36838954,4764.9,4764.8,0.02]
[1756030802893,10.36880651,4764.9,4764.8,0.02]
[1756030803736,9.26620651,4764.9,4764.8,0.02]
[1756030805832,2.09898828,4764.2,4764.1,0.041]
[1756030806130,11.43241265,4764.2,4764.1,0.041]
[1756030806331,10.68491116,4764.2,4764.1,0.041]
[1756030806539,10.76906716,4764.2,4764.1,0.041]
[1756030806896,11.09757118,4764.2,4764.1,0.041]
[1756030807401,11.84517535,4764.2,4764.1,0.041]
[1756030808333,11.09757118,4764.2,4764.1,0.041]
[1756030808906,11.25850952,4764.2,4764.1,0.041]
[1756030809410,10.9300055,4764.2,4764.1,0.041]
[1756030810531,10.93170055,4764.2,4764.1,0.041]
[1756030811703,12.19170055,4764.2,4764.1,0.041]
[1756030812022,11.67970055,4764.2,4764.1,0.041]
[1756030812231,11.87443403,4764.2,4764.1,0.041]
[1756030812956,12.20296062,4764.2,4764.1,0.041]
[1756030813465,2.09912046,4763.9,4763.1,0.05]
[1756030813626,6.07073839,4763.9,4763.1,0.05]
[1756030813826,7.19227116,4763.9,4763.1,0.05]
[1756030814028,10.01343316,4763.9,4763.1,0.05]
[1756030815778,2.09942895,4763.2,4763.1,0.05]
[1756030815957,10.68504688,4763.2,4763.1,0.05]
[1756030816528,11.01363173,4763.2,4763.1,0.05]
[1756030816725,8.91420278,4763.2,4763.1,0.05]
[1756030816947,9.66138481,4763.2,4763.1,0.05]
[1756030817151,8.99837778,4763.2,4763.1,0.05]
[1756030817536,11.09780673,4763.2,4763.1,0.05]
[1756030819070,5.47637778,4763.2,4763.1,0.05]
[1756030819227,8.66879293,4763.2,4763.1,0.05]
[1756030819429,5.66879293,4763.2,4763.1,0.05]
[1756030819633,5.58461793,4763.2,4763.1,0.05]
[1756030820034,5.58461793,4763.2,4763.1,2.14947303]
[1756030820347,2.06361793,4763.2,4763.1,2.36642033]
[1756030820688,5.137,4763.2,4763.1,2.36642033]
[1756030820887,3.522,4763.2,4763.1,2.36642033]
[1756030821370,1.615,4764.0,4763.1,0.2669473]
[1756030821565,3.9714013,4763.9,4763.4,2.09932325]
[1756030821769,0.4484013,4763.8,4763.4,2.09932325]
[1756030821936,3.523,4763.7,4763.4,2.09932325]
[1756030822137,3.523,4763.7,4763.1,2.14945882]
[1756030822138,0.4484013,4763.6,4763.5,2.09929673]
[1756030822468,0.4484013,4763.6,4763.1,0.05]
[1756030822644,1.9435105,4764.0,4763.6,2.09921033]
[1756030822858,3.524,4763.9,4763.7,2.09920297]
[1756030823168,3.524,4763.9,4763.5,2.09929219]
[1756030823378,1.9435105,4764.0,4763.9,2.09912046]
[1756030823558,5.4675105,4764.0,4763.9,2.09912046]
[1756030823870,3.8525105,4764.0,4763.9,2.51895604]
[1756030824076,3.8525105,4764.0,4763.9,2.09912046]
[1756030824781,3.524,4764.0,4763.9,2.09912046]
[1756030825261,1.615,4764.7,4763.6,0.7648]
[1756030825592,3.524,4764.6,4764.5,2.09881279]
[1756030826972,0.34846181,4764.8,4764.5,2.09881279]
[1756030826973,0.34846181,4764.8,4764.7,2.09876802]
[1756030827186,3.547,4764.8,4764.7,2.09876802]
[1756030828247,0.02,4764.8,4764.7,2.75876802]
[1756030828450,0.02,4764.8,4764.7,5.75876802]
[1756030828683,0.02,4764.8,4764.7,6.38959402]
[1756030828850,0.02,4764.8,4764.7,7.2804121]
[1756030829051,0.02,4765.8,4765.7,2.09832763]
[1756030829851,0.02,4765.8,4765.7,3.38908063]
[1756030831586,0.02,4765.8,4765.7,2.09832763]
[1756030833390,3.551,4765.8,4765.7,2.09832763]
[1756030835078,3.551,4765.8,4765.6,2.09836944]
[1756030835292,3.551,4765.8,4765.4,2.09841909]
[1756030835473,0.4446,4765.7,4765.4,2.09841909]
[1756030835679,3.551,4765.8,4765.4,2.09841909]
[1756030835885,0.4446,4765.7,4765.4,2.09841909]
[1756030836083,0.4446,4765.6,4765.2,2.09851141]
[1756030836283,3.551,4765.8,4765.1,2.09858614]
[1756030836284,0.7315,4765.5,4765.1,2.09858614]
[1756030836592,0.7315,4765.5,4764.8,0.02]
[1756030837101,2.3455,4765.5,4764.8,0.02]
[1756030837265,2.3455,4765.5,4764.9,2.09867993]
[1756030837465,2.3455,4765.5,4764.8,0.02]
[1756030837666,2.3455,4765.5,4765.0,2.09863531]
[1756030838000,2.3455,4765.5,4764.8,0.02]
[1756030838001,2.09850376,4765.3,4764.8,0.02]
[1756030838184,0.2869,4764.9,4764.8,0.02]
[1756030838602,0.7315,4764.9,4764.8,0.02]
[1756030838802,2.83017993,4764.9,4764.8,0.02]
[1756030839009,0.7315,4764.9,4764.8,0.02]
[1756030839212,2.83017993,4764.9,4764.8,0.02]
[1756030840486,2.83017993,4764.9,4763.8,0.02]
[1756030840487,2.09874312,4764.8,4763.8,0.02]
[1756030840690,3.542,4764.7,4763.8,0.02]
[1756030840896,1.614,4764.6,4763.9,2.09911409]
[1756030841216,0.4446,4764.5,4763.8,0.02]
[1756030842071,0.4446,4764.5,4763.8,2.11915397]
[1756030842272,0.4446,4764.5,4763.8,0.02]
[1756030842479,0.4446,4764.5,4763.8,2.11915603]
[1756030842868,0.4446,4764.5,4763.8,0.02]
[1756030843398,0.4446,4764.5,4763.9,2.09910983]
[1756030843994,0.4446,4764.5,4763.8,2.11915721]
[1756030844199,0.4446,4764.5,4763.8,0.02]
[1756030844398,0.4446,4764.5,4763.8,2.1191214]
[1756030844967,0.2869,4763.9,4763.8,0.02]
[1756030845171,3.8269,4763.9,4763.8,0.02]
[1756030845386,1.94246417,4764.6,4763.8,0.02]
[1756030845387,4.94246417,4764.6,4763.8,0.02]
[1756030845599,0.7315,4763.9,4763.8,0.02]
[1756030845824,4.2715,4763.9,4763.8,0.02]
[1756030846404,3.54,4763.9,4763.8,0.02]
[1756030846592,3.54,4763.9,4763.8,2.11916453]
[1756030848070,0.4446,4764.3,4763.9,2.09910944]
[1756030848300,3.54,4764.2,4764.0,2.09907475]
[1756030848679,3.54,4764.1,4764.0,2.52088551]
[1756030849001,1.94246417,4764.6,4764.2,2.09897848]
[1756030849206,3.54,4764.5,4764.2,2.09897848]
[1756030849400,3.54,4764.4,4764.0,0.42182804]
[1756030849617,3.54,4764.4,4764.1,2.09903234]
[1756030849982,3.54,4764.4,4763.8,0.02]
[1756030850187,3.54,4764.4,4764.3,2.09894423]
[1756030851020,3.54,4764.4,4764.0,2.09906574]
[1756030851189,3.54,4764.4,4763.8,0.02]
[1756030851529,3.54,4764.4,4764.0,2.09904098]
[1756030851706,0.2984,4764.1,4763.8,0.02]
[1756030852015,3.541,4764.0,4763.8,0.02]
[1756030852186,0.2984,4763.9,4763.8,0.02]
[1756030852388,0.7709,4763.9,4763.8,0.02]
[1756030852586,0.855058,4763.9,4763.8,0.02]
[1756030853825,2.95417846,4763.9,4763.8,0.02]
[1756030854125,0.855058,4763.9,4763.8,0.02]
[1756030857024,2.95417846,4763.9,4763.8,0.02]
[1756030857326,5.95417846,4763.9,4763.8,0.02]
[1756030857506,6.4001484,4763.9,4763.8,0.02]
[1756030858106,5.95417846,4763.9,4763.8,0.02]
[1756030859723,6.28271007,4763.9,4763.8,0.02]
[1756030860307,6.72864953,4763.9,4763.8,0.02]
[1756030860508,4.30099746,4763.9,4763.8,0.02]
[1756030860707,6.40011792,4763.9,4763.8,0.02]
[1756030863798,6.7286511,4763.9,4763.8,0.02]
[1756030864946,7.28567182,4763.9,4763.8,0.02]
[1756030865298,8.6516511,4763.9,4763.8,0.02]
[1756030867497,8.84567548,4763.9,4763.8,0.02]
[1756030867902,8.84567548,4763.9,4763.3,0.001]
[1756030867903,7.02216453,4763.8,4763.3,0.001]
[1756030868141,0.2984,4763.4,4763.3,0.001]
[1756030868350,9.38468026,4763.4,4763.3,0.001]
[1756030868528,7.135,4763.3,4762.1,0.04]
[1756030868725,0.2984,4762.2,4762.1,0.04]
[1756030868925,7.5582698,4762.2,4762.1,0.04]
[1756030869245,12.66670553,4762.2,4762.1,0.04]
[1756030874628,12.99536075,4762.2,4762.1,0.04]
[1756030877442,12.43690548,4762.2,4762.1,0.04]
[1756030878038,12.99345668,4762.2,4762.1,0.04]
[1756030878346,12.43690548,4762.2,4762.1,0.04]
[1756030879056,12.43690548,4762.2,4762.1,0.02]
[1756030880751,19.54690548,4762.2,4762.1,0.02]
[1756030881266,20.29162953,4762.2,4762.1,0.02]
[1756030882257,19.54690548,4762.2,4762.1,0.02]
[1756030884151,8.92759468,4762.2,4762.1,0.02]
[1756030884356,12.41366448,4762.2,4762.1,0.02]
[1756030887265,10.44171856,4761.9,4761.8,3.54272727]
[1756030887427,11.10171856,4761.9,4761.8,1e-08]
[1756030887630,0.66,4761.4,4761.1,0.041]
[1756030887831,6.05461084,4761.2,4761.1,0.041]
[1756030888025,13.00618854,4761.2,4761.1,0.041]
[1756030888230,16.98008854,4761.2,4761.1,0.041]
[1756030888656,13.43808854,4761.2,4761.1,0.041]
[1756030888863,17.06431654,4761.2,4761.1,0.041]
[1756030889070,16.6281805,4761.2,4761.1,0.041]
[1756030889234,10.25966966,4761.2,4761.1,0.041]
[1756030889563,14.4305503,4761.2,4761.1,0.041]
[1756030889763,14.8624503,4761.2,4761.1,0.041]
[1756030890262,10.8895503,4761.2,4761.1,0.041]
[1756030890559,14.1542503,4761.2,4761.1,0.041]
[1756030891064,9.05593946,4761.2,4761.1,0.041]
[1756030891362,7.75041499,4761.2,4761.1,0.041]
[1756030892130,7.00693946,4761.2,4761.1,0.041]
[1756030892366,7.75041499,4761.2,4761.1,0.041]
[1756030892551,9.85072583,4761.2,4761.1,0.041]
[1756030892755,9.1072503,4761.2,4761.1,0.041]
[1756030893371,9.43596862,4761.2,4761.1,0.041]
[1756030893735,3.77465778,4761.2,4761.1,0.041]
[1756030894066,9.43596862,4761.2,4761.1,0.041]
[1756030894464,3.77465778,4761.2,4761.1,0.041]
[1756030894683,7.33465778,4761.2,4761.1,0.041]
[1756030895666,9.43496862,4761.2,4761.1,0.041]
[1756030896181,10.17977901,4761.2,4761.1,0.041]
[1756030896366,9.72926862,4761.2,4761.1,0.041]
[1756030896682,9.43496862,4761.2,4761.1,0.041]
[1756030897251,10.18013982,4761.2,4761.1,0.041]
[1756030897453,9.43496862,4761.2,4761.1,0.041]
[1756030898670,9.86686862,4761.2,4761.1,0.041]
[1756030898855,10.16116862,4761.2,4761.1,0.041]
[1756030899058,2.10044319,4760.9,4760.8,0.02]
[1756030899259,9.59286392,4760.9,4760.8,0.02]
[1756030899463,10.02471534,4760.9,4760.8,0.02]
[1756030899870,11.28771534,4760.9,4760.8,0.02]
[1756030900383,2.10075206,4760.2,4760.1,0.04]
[1756030900676,11.76031527,4760.2,4760.1,0.04]
[1756030900986,12.19221527,4760.2,4760.1,0.04]
[1756030901186,13.36989152,4760.2,4760.1,0.04]
[1756030901682,13.56388599,4760.2,4760.1,0.04]
[1756030901980,12.30088599,4760.2,4760.1,0.04]
[1756030902355,12.38513099,4760.2,4760.1,0.04]
[1756030902559,12.71394995,4760.2,4760.1,0.04]
[1756030903682,9.15594995,4760.2,4760.1,0.04]
[1756030903881,12.71494995,4760.2,4760.1,0.04]
[1756030904181,12.52095548,4760.2,4760.1,0.04]
[1756030904871,12.08905548,4760.2,4760.1,0.04]
[1756030905074,11.86095548,4760.2,4760.1,0.04]
[1756030905448,11.58635931,4760.2,4760.1,0.04]
[1756030906281,12.70182897,4760.2,4760.1,0.04]
[1756030906657,12.40752897,4760.2,4760.1,0.04]
[1756030906991,11.20681431,4760.2,4760.1,0.04]
[1756030907877,11.93301431,4760.2,4760.1,0.04]
[1756030908496,11.20681431,4760.2,4760.1,0.04]
[1756030908880,11.21381431,4760.2,4760.1,0.04]
[1756030909252,11.61119535,4760.2,4760.1,0.04]
[1756030909657,12.72666501,4760.2,4760.1,0.04]
[1756030910105,9.82166501,4760.2,4760.1,0.04]
[1756030910261,13.38766501,4760.2,4760.1,0.04]
[1756030910933,13.38773138,4760.2,4760.1,0.04]
[1756030911230,12.27226172,4760.2,4760.1,0.04]
[1756030911502,13.47197738,4760.2,4760.1,0.04]
[1756030911659,9.17977738,4760.2,4760.1,0.04]
[1756030911859,14.46197738,4760.2,4760.1,0.04]
[1756030912086,14.77347738,4760.2,4760.1,0.04]
[1756030912257,13.65800772,4760.2,4760.1,0.04]
[1756030912681,13.98682838,4760.2,4760.1,0.04]
[1756030915309,11.29512838,4760.2,4760.1,0.04]
[1756030915488,12.03890769,4760.2,4760.1,0.04]
[1756030915866,12.49310769,4760.2,4760.1,0.04]
[1756030916287,8.18732838,4760.2,4760.1,0.04]
[1756030916592,11.29612838,4760.2,4760.1,0.04]
[1756030916795,7.73312838,4760.2,4760.1,0.04]
[1756030916995,11.21188238,4760.2,4760.1,0.04]
[1756030918298,11.76893697,4760.2,4760.1,0.04]
[1756030919396,11.21088238,4760.2,4760.1,0.04]
[1756030919900,9.11013032,4760.2,4760.1,0.04]
[1756030920112,8.05257855,4760.2,4760.1,0.04]
[1756030920319,11.05257855,4760.2,4760.1,0.04]
[1756030920520,11.36407855,4760.2,4760.1,0.04]
[1756030920811,11.81827855,4760.2,4760.1,0.04]
[1756030921406,12.04751248,4760.2,4760.1,0.04]
[1756030922007,12.13175148,4760.2,4760.1,0.04]
[1756030922521,11.57369689,4760.2,4760.1,0.04]
[1756030922727,12.13161969,4760.2,4760.1,0.04]
[1756030923237,11.73167896,4760.2,4760.1,0.04]
[1756030924495,11.73167896,4760.2,4760.1,0.041]
[1756030924814,12.06048974,4760.2,4760.1,0.041]
[1756030925990,12.80426905,4760.2,4760.1,0.041]
[1756030926198,9.24326905,4760.2,4760.1,0.041]
[1756030926394,12.80126905,4760.2,4760.1,0.041]
[1756030927620,12.05748974,4760.2,4760.1,0.041]
[1756030928224,12.25166889,4760.2,4760.1,0.041]
[1756030929022,13.36713855,4760.2,4760.1,0.041]
[1756030929418,13.03832777,4760.2,4760.1,0.041]
[1756030930402,11.92285811,4760.2,4760.1,0.041]
[1756030931739,13.04265301,4760.2,4760.1,0.041]
[1756030931943,11.92285811,4760.2,4760.1,0.041]
[1756030932637,20.12890552,4760.2,4760.1,0.041]
[1756030932793,2.10088447,4759.9,4759.8,0.02]
[1756030932993,9.60656945,4759.9,4759.8,0.02]
[1756030933206,10.72076945,4759.9,4759.8,0.02]
[1756030933409,2.10119347,4759.2,4759.1,0.04]
[1756030933730,11.0296993,4759.2,4759.1,0.04]
[1756030934235,11.89702776,4759.2,4759.1,0.04]
[1756030935834,12.09133272,4759.2,4759.1,0.04]
[1756030936195,11.89702776,4759.2,4759.1,0.04]
[1756030936918,12.0912886,4759.2,4759.1,0.04]
[1756030939400,11.76241414,4759.2,4759.1,0.04]
[1756030940127,11.76230177,4759.2,4759.1,0.04]
[1756030942340,11.76221601,4759.2,4759.1,0.04]
[1756030942508,12.09110294,4759.2,4759.1,0.04]
[1756030942842,12.75110294,4759.2,4759.1,0.04]
[1756030943405,9.19610294,4759.2,4759.1,0.04]
[1756030943608,12.74611351,4759.2,4759.1,0.04]
[1756030945616,9.19611351,4759.2,4759.1,0.04]
[1756030945816,12.74411351,4759.2,4759.1,0.04]
[1756030949240,12.08411351,4759.2,4759.1,0.04]
[1756030950146,11.88804023,4759.2,4759.1,0.04]
[1756030950349,12.08189187,4759.2,4759.1,0.04]
[1756030951074,11.75300494,4759.2,4759.1,0.04]
[1756030951861,20.12500494,4759.2,4759.1,0.04]
[1756030952359,19.65360494,4759.2,4759.1,0.04]
[1756030952556,20.08580494,4759.2,4759.1,0.04]
[1756030953661,20.08580739,4759.2,4759.1,0.04]
[1756030954252,20.41470188,4759.2,4759.1,0.04]
[1756030954462,19.68720188,4759.2,4759.1,0.04]
[1756030954847,20.41370188,4759.2,4759.1,0.04]
[1756030955057,15.60670188,4759.2,4759.1,0.04]
[1756030955261,19.15070188,4759.2,4759.1,0.04]
[1756030956500,18.42420188,4759.2,4759.1,0.04]
[1756030956786,19.15070188,4759.2,4759.1,0.04]
[1756030957182,18.42420188,4759.2,4759.1,0.04]
[1756030957695,14.88020188,4759.2,4759.1,0.04]
[1756030957839,18.42220188,4759.2,4759.1,0.04]
[1756030958046,14.88020188,4759.2,4759.1,0.04]
[1756030958248,18.42220188,4759.2,4759.1,0.04]
[1756030958676,18.42344185,4759.2,4759.1,0.04]
[1756030959176,19.54155604,4759.2,4759.1,0.04]
[1756030959882,18.42244185,4759.2,4759.1,0.041]
[1756030960080,14.88144185,4759.2,4759.1,0.041]
[1756030960282,18.42244185,4759.2,4759.1,0.041]
[1756030960451,2.67024838,4759.2,4759.1,0.041]
[1756030960650,6.43527704,4759.2,4759.1,0.041]
[1756030960886,6.24891323,4759.2,4759.1,0.041]
[1756030961068,5.6894998,4759.2,4759.1,0.041]
[1756030961946,2.1474998,4759.2,4759.1,0.041]
[1756030962289,0.084254,4759.2,4759.1,0.041]
[1756030962463,0.002,4759.8,4759.1,0.041]
[1756030962846,0.002,4759.8,4759.7,2.10097275]
[1756030963047,0.002,4759.8,4759.7,2.52117442]
[1756030964249,0.002,4759.8,4759.7,3.18117442]
[1756030964785,0.002,4759.8,4759.7,2.52117442]
[1756030967375,0.002,4759.8,4759.1,0.041]
[1756030967805,0.002,4759.8,4759.2,2.10119347]
[1756030967978,0.002,4759.8,4759.7,2.10097275]
[1756030969593,0.002,4759.8,4759.5,2.1010567]
[1756030969788,0.002,4759.8,4759.7,2.10097275]
[1756030969993,0.002,4759.8,4759.7,2.52117569]
[1756030979278,0.002,4759.8,4759.7,3.28597569]
[1756030979627,0.002,4759.8,4759.7,2.62597569]
[1756030980115,0.002,4759.8,4759.7,2.52117569]
[1756030981399,0.002,4759.8,4759.6,0.001]
[1756030981400,0.7605,4759.8,4759.6,0.001]
[1756030981632,0.4685,4759.7,4759.6,0.001]
[1756030981837,1.390158,4759.7,4759.6,0.001]
[1756030982236,0.631658,4759.7,4759.6,2.10201689]
[1756030982410,0.002,4759.8,4759.7,2.10097275]
[1756030985344,0.002,4759.8,4759.7,2.76097275]
[1756030987237,0.002,4759.8,4759.7,2.10097275]
[1756030987551,0.4705,4759.8,4759.7,2.10097275]
[1756030988052,0.002,4759.8,4759.7,2.10097275]